fUSD/lending_fUSD_20260126
["ID","MTS","AMOUNT","RATE_DAILY","PERIOD"]
[403676967,1769467834054,-166.66,0.00016241,2]
[403676969,1769467834062,-5958.25,0.00016277,2]
[403676971,1769467834072,-197.76,0.00016288,2]
[403676973,1769467834081,-155.0,0.00016391,2]
[403676975,1769467834091,-5861.75036076,0.00016412,2]
[403676977,1769467834100,-1026.34,0.00016428,2]
[403676979,1769467834109,-500.0,0.00016437,2]
[403676981,1769467834119,-500.0,0.00016437,2]
[403676983,1769467834128,-500.0,0.00016437,2]
[403676985,1769467834140,-500.0,0.00016437,2]
[403676987,1769467834150,-500.0,0.00016437,2]
[403677006,1769467834321,-500.0,0.00016437,2]
[403677008,1769467834332,-500.0,0.00016437,2]
[403677010,1769467834342,-500.0,0.00016437,2]
[403677012,1769467834351,-500.0,0.00016437,2]
[403677014,1769467834360,-509.44466748,0.00016437,2]
[403677016,1769467834370,-500.0,0.00016437,2]
[403677018,1769467834379,-500.0,0.00016437,2]
[403677020,1769467834389,-500.0,0.00016437,2]
[403677022,1769467834398,-500.0,0.00016437,2]
[403677024,1769467834408,-500.0,0.00016438,2]
[403677026,1769467834418,-500.0,0.00016438,2]
[403677028,1769467834427,-500.0,0.00016438,2]
[403677030,1769467834436,-235.18438983,0.00016438,2]
[403677032,1769467834446,-500.0,0.00016438,2]
[403677034,1769467834455,-500.0,0.00016438,2]
[403677036,1769467834464,-500.0,0.00016438,2]
[403677038,1769467834473,-500.0,0.00016438,2]
[403677040,1769467834483,-500.0,0.00016438,2]
[403677042,1769467834492,-500.0,0.00016438,2]
[403677044,1769467834501,-500.0,0.00016438,2]
[403677046,1769467834510,-500.0,0.00016438,2]
[403677049,1769467834520,-500.0,0.00016438,2]
[403677051,1769467834529,-500.0,0.00016438,2]
[403677053,1769467834538,-500.0,0.00016438,2]
[403677055,1769467834548,-500.0,0.00016438,2]
[403677057,1769467834557,-500.0,0.00016438,2]
[403677059,1769467834566,-500.0,0.00016438,2]
[403677061,1769467834575,-288.94193535,0.00016438,2]
[403677063,1769467834584,-500.0,0.00016438,2]
[403677065,1769467834593,-300.0,0.00016438,2]
[403677067,1769467834602,-300.0,0.00016438,2]
[403677069,1769467834611,-300.0,0.00016438,2]
[403677070,1769467834622,-300.0,0.00016438,2]
[403677073,1769467834631,-300.0,0.00016438,2]
[403677075,1769467834640,-300.0,0.00016438,2]
[403677077,1769467834650,-300.0,0.00016438,2]
[403677078,1769467834659,-300.0,0.00016438,2]
[403677080,1769467834668,-260.51,0.00016438,2]
[403677082,1769467834677,-500.0,0.00016438,2]
[403677085,1769467834688,-500.0,0.00016438,2]
[403677087,1769467834699,-500.0,0.00016438,2]
[403677088,1769467834708,-500.0,0.00016438,2]
[403677091,1769467834718,-500.0,0.00016438,2]
[403677093,1769467834727,-500.0,0.00016438,2]
[403677095,1769467834735,-500.0,0.00016438,2]
[403677097,1769467834745,-500.0,0.00016438,2]
[403677099,1769467834755,-500.0,0.00016438,2]
[403677101,1769467834766,-500.0,0.00016438,2]
[403677103,1769467834775,-500.0,0.00016438,2]
[403677105,1769467834786,-500.0,0.00016438,2]
[403677107,1769467834798,-500.0,0.00016438,2]
[403677109,1769467834808,-365.43799282,0.00016438,2]
[403677111,1769467834817,-500.0,0.00016438,2]
[403677113,1769467834827,-500.0,0.00016438,2]
[403677115,1769467834836,-500.0,0.00016438,2]
[403677117,1769467834845,-500.0,0.00016438,2]
[403677119,1769467834855,-500.0,0.00016438,2]
[403677121,1769467834864,-500.0,0.00016438,2]
[403677123,1769467834873,-500.0,0.00016438,2]
[403677125,1769467834882,-500.0,0.00016438,2]
[403677127,1769467834891,-500.0,0.00016438,2]
[403677129,1769467834900,-500.0,0.00016438,2]
[403677131,1769467834909,-500.0,0.00016438,2]
[403677133,1769467834919,-500.0,0.00016438,2]
[403677135,1769467834928,-500.0,0.00016438,2]
[403677137,1769467834936,-151.0,0.00016438,2]
[403677139,1769467834946,-166.66,0.00016556,2]
[403677141,1769467834955,-322.6107,0.00016602,2]
[403677143,1769467834964,-250.0,0.00016602,2]
[403677145,1769467834973,-250.0,0.00016602,2]
[403677147,1769467834982,-500.0,0.00016602,2]
[403677149,1769467834991,-250.0,0.00016602,2]
[403677151,1769467835000,-250.0,0.00016602,2]
[403677153,1769467835010,-250.0,0.00016602,2]
[403677155,1769467835019,-201.932861,0.00016602,2]
[403677157,1769467835028,-500.0,0.00016602,2]
[403677159,1769467835037,-823.77908852,0.00016602,2]
[403677161,1769467835047,-250.0,0.00016602,2]
[403677163,1769467835057,-250.0,0.00016602,2]
[403677165,1769467835065,-250.0,0.00016602,2]
[403677167,1769467835074,-500.0,0.00016602,2]
[403677169,1769467835083,-250.0,0.00016602,2]
[403677171,1769467835092,-250.0,0.00016602,2]
[403677173,1769467835101,-250.0,0.00016602,2]
[403677175,1769467835110,-500.0,0.00016602,2]
[403677177,1769467835119,-250.0,0.00016602,2]
[403677179,1769467835128,-250.0,0.00016602,2]
[403677181,1769467835137,-500.0,0.00016602,2]
[403677182,1769467835147,-250.0,0.00016602,2]
[403677184,1769467835156,-250.0,0.00016602,2]
[403677187,1769467835165,-250.0,0.00016602,2]
[403677189,1769467835175,-500.0,0.00016602,2]
[403677190,1769467835184,-334.82219287,0.00016602,2]
[403677192,1769467835193,-250.0,0.00016602,2]
[403677194,1769467835202,-500.0,0.00016602,2]
[403677196,1769467835211,-250.0,0.00016602,2]
[403677198,1769467835220,-250.0,0.00016602,2]
[403677199,1769467835229,-250.0,0.00016602,2]
[403677200,1769467835238,-500.0,0.00016602,2]
[403677201,1769467835247,-250.0,0.00016602,2]
[403677202,1769467835258,-250.0,0.00016602,2]
[403677203,1769467835267,-500.0,0.00016602,2]
[403677204,1769467835275,-250.0,0.00016602,2]
[403677205,1769467835284,-250.0,0.00016602,2]
[403677206,1769467835293,-500.0,0.00016602,2]
[403677207,1769467835302,-359.76179104,0.00016602,2]
[403677208,1769467835311,-250.0,0.00016602,2]
[403677209,1769467835320,-500.0,0.00016602,2]
[403677210,1769467835333,-250.0,0.00016602,2]
[403677211,1769467835353,-500.0,0.00016602,2]
[403677212,1769467835370,-250.0,0.00016602,2]
[403677213,1769467835391,-250.0,0.00016602,2]
[403677214,1769467835407,-250.0,0.00016602,2]
[403677215,1769467835422,-250.0,0.00016602,2]
[403677216,1769467835440,-250.0,0.00016602,2]
[403677217,1769467835459,-250.0,0.00016602,2]
[403677218,1769467835478,-250.0,0.00016602,2]
[403677219,1769467835497,-578.20924308,0.00016602,2]
[403677220,1769467835517,-308.74913104,0.00016602,2]
[403677221,1769467835534,-695.39793187,0.00016602,2]
[403677222,1769467835548,-174.61919141,0.00016602,2]
[403677223,1769467835566,-151.0,0.00016602,2]
[403677224,1769467835579,-201.93286099,0.00016602,2]
[403677225,1769467835598,-250.0,0.00016602,2]
[403677226,1769467835611,-250.0,0.00016602,2]
[403677227,1769467835625,-250.0,0.00016602,2]
[403677228,1769467835640,-250.0,0.00016602,2]
[403677229,1769467835655,-250.0,0.00016602,2]
[403677230,1769467835671,-250.0,0.00016602,2]
[403677231,1769467835694,-250.0,0.00016602,2]
[403677232,1769467835708,-348.39835646,0.00016602,2]
[403677233,1769467835723,-151.0,0.00016602,2]
[403677234,1769467835739,-3644.63600796,0.00016635,2]
[403677235,1769467835754,-6429.56993054,0.00016635,2]
[403677236,1769467835769,-9618.25208877,0.00016635,2]
[403677237,1769467835784,-837.16854767,0.00016658,2]
[403677238,1769467835802,-1026.34,0.00016702,2]
[403677239,1769467835817,-1000.0,0.00016774,2]
[403677240,1769467835835,-155.0,0.00016781,2]
[403677241,1769467835850,-163.08,0.00016789,2]
[403677242,1769467835865,-300.0,0.00016837,2]
[403677243,1769467835880,-558.94,0.00016837,2]
[403677244,1769467835896,-150.0,0.00016837,2]
[403677245,1769467835910,-150.0,0.00016837,2]
[403677246,1769467835925,-13209.23453492,0.000169,2]
[403677247,1769467835940,-5861.75036076,0.0001691,2]
[403677248,1769467835955,-420.0,0.00016968,2]
[403677249,1769467835970,-1026.34,0.00016976,2]
[403677250,1769467835986,-500.0,0.00016999,2]
[403677251,1769467836002,-500.0,0.00016999,2]
[403677252,1769467836017,-500.0,0.00016999,2]
[403677253,1769467836033,-500.0,0.00016999,2]
[403677254,1769467836049,-500.0,0.00016999,2]
[403677255,1769467836065,-500.0,0.00016999,2]
[403677256,1769467836081,-500.0,0.00016999,2]
[403677257,1769467836096,-500.0,0.00016999,2]
[403677258,1769467836110,-500.0,0.00016999,2]
[403677259,1769467836125,-500.0,0.00016999,2]
[403677260,1769467836141,-500.0,0.00016999,2]
[403677261,1769467836156,-500.0,0.00016999,2]
[403677262,1769467836171,-1680.0,0.00017054,2]
[403677263,1769467836186,-195.0,0.00017064,2]
[403677264,1769467836202,-250.0,0.00017064,2]
[403677265,1769467836217,-300.0,0.00017064,2]
[403677266,1769467836231,-253.0,0.00017068,2]
[403677267,1769467836246,-854.2589148,0.0001715,2]
[403677268,1769467836260,-521.64708033,0.0001715,2]
[403677269,1769467836277,-181.08010149,0.0001715,2]
[403677270,1769467836293,-151.0,0.0001715,2]
[403677271,1769467836309,-209.40437684,0.0001715,2]
[403677272,1769467836324,-500.0,0.00017164,2]
[403677273,1769467836340,-250.0,0.00017164,2]
[403677274,1769467836357,-250.0,0.00017164,2]
[403677275,1769467836373,-155.0,0.00017171,2]
[403677276,1769467836389,-1026.34,0.0001725,2]
[403677277,1769467836405,-159.33586698,0.00017423,2]
[403677278,1769467836421,-553.0,0.00017496,2]
[403677279,1769467836436,-1026.41466997,0.00017524,2]
[403677280,1769467836452,-553.0,0.00017546,2]
[403677281,1769467836468,-237.0,0.00017609,2]
[403677282,1769467836484,-13013.8371,0.00017635,2]
[403677283,1769467836498,-553.0,0.00017652,2]
[403677284,1769467836512,-468.76,0.00017656,2]
[403677285,1769467836526,-1117.88,0.00017659,2]
[403677286,1769467836541,-558.94,0.00017659,2]
[403677287,1769467836555,-359.96,0.00017659,2]
[403677288,1769467836570,-468.76,0.00017659,2]
[403677289,1769467836584,-172.23,0.00017659,2]
[403677290,1769467836599,-344.46,0.00017659,2]
[403677291,1769467836613,-487.0,0.00017659,2]
[403677292,1769467836627,-487.0,0.00017659,2]
[403677293,1769467836641,-487.0,0.00017659,2]
[403677294,1769467836656,-487.0,0.00017659,2]
[403677295,1769467836670,-818.03,0.00017659,2]
[403677296,1769467836685,-885.86649465,0.00017698,2]
[403677297,1769467836699,-187.78006525,0.00017698,2]
[403677298,1769467836713,-151.0,0.00017698,2]
[403677299,1769467836728,-217.15233878,0.00017698,2]
[403677300,1769467836743,-150.0,0.00017699,2]
[403677301,1769467836758,-500.0,0.00017699,2]
[403677302,1769467836772,-276.3129016,0.00017699,2]
[403677303,1769467836788,-150.0,0.00017699,2]
[403677304,1769467836803,-500.0,0.00017699,2]
[403677305,1769467836817,-150.0,0.00017699,2]
[403677306,1769467836834,-150.0,0.00017699,2]
[403677307,1769467836848,-500.0,0.00017699,2]
[403677308,1769467836863,-500.0,0.00017699,2]
[403677309,1769467836877,-150.0,0.00017699,2]
[403677310,1769467836891,-150.0,0.00017699,2]
[403677311,1769467836907,-150.0,0.00017699,2]
[403677312,1769467836921,-150.0,0.00017699,2]
[403677313,1769467836935,-150.0,0.00017699,2]
[403677314,1769467836950,-150.0,0.00017699,2]
[403677315,1769467836965,-150.0,0.00017699,2]
[403677316,1769467836979,-150.0,0.00017699,2]
[403677317,1769467836993,-150.0,0.00017699,2]
[403677318,1769467837007,-150.0,0.00017699,2]
[403677319,1769467837021,-150.0,0.00017699,2]
[403677321,1769467837264,-150.0,0.00017699,2]
[403677324,1769467837289,-150.0,0.00017699,2]
[403677325,1769467837298,-653.0,0.00017699,2]
[403677326,1769467837308,-500.0,0.00017754,2]
[403677327,1769467837316,-150.0,0.00017754,2]
[403677328,1769467837326,-500.0,0.00017754,2]
[403677329,1769467837335,-150.0,0.00017754,2]
[403677330,1769467837344,-150.0,0.00017754,2]
[403677331,1769467837353,-500.0,0.00017754,2]
[403677332,1769467837364,-500.0,0.00017754,2]
[403677333,1769467837373,-200.0,0.00017754,2]
[403677334,1769467837382,-150.0,0.00017754,2]
[403677335,1769467837392,-150.0,0.00017754,2]
[403677336,1769467837401,-200.0,0.00017754,2]
[403677337,1769467837411,-150.0,0.00017754,2]
[403677338,1769467837420,-150.0,0.00017754,2]
[403677339,1769467837429,-150.0,0.00017754,2]
[403677340,1769467837439,-150.0,0.00017754,2]
[403677341,1769467837448,-150.0,0.00017754,2]
[403677342,1769467837457,-653.0,0.00017754,2]
[403677343,1769467837466,-5612.26893381,0.00017763,2]
[403677355,1769467838140,-4387.73106619,0.00017763,2]
[403677356,1769467838150,-856.0,0.00017769,2]
[403677357,1769467838159,-553.0,0.0001777,2]
[403677358,1769467838169,-500.0,0.0001779,2]
[403677359,1769467838178,-500.0,0.0001779,2]
[403677360,1769467838187,-500.0,0.0001779,2]
[403677361,1769467838196,-500.0,0.0001779,2]
[403677362,1769467838205,-500.0,0.0001779,2]
[403677363,1769467838214,-500.0,0.0001779,2]
[403677364,1769467838223,-500.0,0.0001779,2]
[403677365,1769467838232,-500.0,0.0001779,2]
[403677366,1769467838242,-462.63319291,0.0001779,2]
[403677367,1769467838251,-500.0,0.0001779,2]
[403677368,1769467838260,-500.0,0.00017809,2]
[403677369,1769467838269,-500.0,0.00017809,2]
[403677370,1769467838278,-150.0,0.00017809,2]
[403677371,1769467838287,-150.0,0.00017809,2]
[403677372,1769467838296,-240.41022385,0.00017809,2]
[403677373,1769467838305,-300.0,0.00017809,2]
[403677374,1769467838314,-200.0,0.00017809,2]
[403677375,1769467838323,-150.0,0.00017809,2]
[403677376,1769467838333,-150.0,0.00017809,2]
[403677377,1769467838342,-150.0,0.00017809,2]
[403677378,1769467838351,-150.0,0.00017809,2]
[403677379,1769467838361,-653.0,0.00017809,2]
[403677380,1769467838373,-2000.0,0.0001782,2]
[403677381,1769467838383,-2000.0,0.0001782,2]
[403677382,1769467838392,-553.0,0.00017847,2]
[403677383,1769467838402,-200.0,0.00017856,2]
[403677384,1769467838411,-500.0,0.00017863,2]
[403677385,1769467838420,-156.8526709,0.00017863,2]
[403677386,1769467838429,-150.0,0.00017863,2]
[403677387,1769467838438,-150.0,0.00017863,2]
[403677388,1769467838447,-200.0,0.00017863,2]
[403677389,1769467838456,-200.0,0.00017863,2]
[403677390,1769467838465,-150.0,0.00017863,2]
[403677391,1769467838475,-653.0,0.00017863,2]
[403677392,1769467838484,-394.41136005,0.000179,2]
[403677393,1769467838493,-620.45015709,0.000179,2]
[403677394,1769467838502,-837.16854767,0.000179,2]
[403677395,1769467838511,-1766.7310861,0.000179,2]
[403677396,1769467838521,-500.0,0.00017918,2]
[403677397,1769467838530,-150.0,0.00017918,2]
[403677398,1769467838539,-150.0,0.00017918,2]
[403677399,1769467838548,-653.0,0.00017918,2]
[403677400,1769467838558,-867.98,0.00017949,2]
[403677401,1769467838568,-6066.0,0.0001795,2]
[403677402,1769467838577,-553.0,0.00017966,2]
[403677403,1769467838587,-334.5472959,0.00017971,2]
[403677404,1769467838596,-197.75906052,0.00017973,2]
[403677405,1769467838605,-250.0,0.00017973,2]
[403677406,1769467838615,-653.0,0.00017973,2]
[403677407,1769467838624,-204.14477787,0.00017973,2]
[403677408,1769467838634,-168.0,0.00017974,2]
[403677409,1769467838644,-4501.1702255,0.00017977,2]
[403677410,1769467838653,-168.0,0.00017981,2]
[403677411,1769467838663,-500.0,0.00017999,2]
[403677412,1769467838672,-500.0,0.00017999,2]
[403677413,1769467838682,-411.79218368,0.00017999,2]
[403677414,1769467838923,-500.0,0.00017999,2]
[403677415,1769467838933,-500.0,0.00017999,2]
[403677416,1769467838943,-500.0,0.00017999,2]
[403677417,1769467838953,-500.0,0.00017999,2]
[403677418,1769467838963,-226.94622895,0.00017999,2]
[403677419,1769467838973,-500.0,0.00017999,2]
[403677420,1769467838982,-500.0,0.00017999,2]
[403677421,1769467838992,-500.0,0.00017999,2]
[403677422,1769467839002,-500.0,0.00017999,2]
[403677423,1769467839012,-500.0,0.00017999,2]
[403677424,1769467839022,-342.77662314,0.00017999,2]
[403677425,1769467839032,-500.0,0.00017999,2]
[403677426,1769467839041,-500.0,0.00017999,2]
[403677427,1769467839051,-500.0,0.00017999,2]
[403677428,1769467839061,-500.0,0.00017999,2]
[403677429,1769467839071,-500.0,0.00017999,2]
[403677430,1769467839081,-500.0,0.00017999,2]
[403677431,1769467839092,-500.0,0.00017999,2]
[403677432,1769467839103,-500.0,0.00017999,2]
[403677433,1769467839113,-500.0,0.00017999,2]
[403677434,1769467839122,-500.0,0.00017999,2]
[403677435,1769467839133,-500.0,0.00017999,2]
[403677436,1769467839143,-500.0,0.00017999,2]
[403677437,1769467839162,-369.4752437,0.00017999,2]
[403677438,1769467839174,-500.0,0.00017999,2]
[403677439,1769467839184,-457.1035126,0.00017999,2]
[403677440,1769467839196,-500.0,0.00017999,2]
[403677441,1769467839206,-500.0,0.00017999,2]
[403677442,1769467839215,-500.0,0.00017999,2]
[403677443,1769467839224,-274.63997222,0.00017999,2]
[403677444,1769467839232,-531.4641031,0.00017999,2]
[403677445,1769467839242,-500.0,0.00017999,2]
[403677446,1769467839253,-500.0,0.00017999,2]
[403677447,1769467839263,-298.66139149,0.00017999,2]
[403677448,1769467839277,-201.33860851,0.00017999,2]
[403677449,1769467839287,-150.0,0.00017999,2]
[403677450,1769467839297,-150.0,0.00017999,2]
[403677451,1769467839307,-45965.00683345,0.00018,2]
[403677452,1769467839319,-641.28142672,0.00018,2]
[403677453,1769467839339,-525.93127847,0.00018,2]
[403677454,1769467839352,-710.72814569,0.00018,2]
[403677455,1769467839371,-394.45008645,0.00018,2]
[403677456,1769467839383,-1186.8261432,0.00018,2]
[403677457,1769467839395,-1482.9015306,0.00018,2]
[403677458,1769467839407,-1015.1628788,0.00018,2]
[403677459,1769467839423,-1932.64807024,0.00018,2]
[403677463,1769467840675,-1056.89806984,0.00017408,2]
[403677464,1769467840687,-650.61843641,0.00017408,2]
[403677465,1769467840703,-441.47,0.00017408,2]
[403677466,1769467840966,-151.0,0.00015853,2]
[403677467,1769467840976,-3712.76385451,0.00017408,2]
[403677468,1769467840985,-268872.7765175,0.00018,2]
[403677469,1769467841141,-5222.78164875,0.00018,2]
[403677470,1769467841152,-259.39905185,0.00018,2]
[403677471,1769467841163,-730111.32762739,0.00018,2]
[403677472,1769467841172,-110199.41631262,0.00018,2]
[403677473,1769467841181,-59192.29570612,0.00018,2]
[403677474,1769467841190,-407002.04590604,0.00018,2]
[403677475,1769467841202,-421.14923811,0.00018,2]
[403677484,1769467842929,-1.7e-07,0.00018,2]
[403677486,1769467843138,-324.598953,0.00017907,2]
[403677487,1769467843153,-742.43903048,0.00017907,2]
[403677488,1769467843164,-295.60870062,0.00017907,2]
[403677489,1769467843176,-4499.10367666,0.00017907,2]
[403677490,1769467843186,-22198.14405753,0.00018,2]
[403677491,1769467844492,10000.01,0.00015506,2]
[403677492,1769467844522,10000.01,0.00015506,2]
[403677493,1769467844704,10000.01,0.00015506,2]
[403677494,1769467844744,10000.01,0.00015506,2]
[403677495,1769467844772,10000.01,0.00015506,2]
[403677496,1769467844801,10000.01,0.00015506,2]
[403677497,1769467844831,10000.01,0.00015506,2]
[403677498,1769467844858,10000.01,0.00015506,2]
[403677499,1769467844888,10000.01,0.00015506,2]
[403677500,1769467844916,10000.01,0.00015506,2]
[403677501,1769467845465,-1873.655312,0.00015506,2]
[403677505,1769467882992,-300.0,0.00015505,2]
[403677506,1769467883022,-300.0,0.00015505,2]
[403677507,1769467883053,-2544.20056881,0.00015505,2]
[403677508,1769467883083,-600.0,0.00015505,2]
[403677509,1769467898264,221.273,0.00015196,2]
[403677510,1769467898298,2290.33586238,0.00015196,2]
[403677511,1769467898323,302.51913762,0.00015196,2]
[403677512,1769467911865,9697.49086238,0.00015496,2]
[403677513,1769467911890,10000.01,0.00015496,2]
[403677514,1769467911914,10000.01,0.00015496,2]
[403677515,1769467974566,-150.49582522,0.00015412,2]
[403677516,1769467974591,-500.0,0.00015413,2]
[403677517,1769467974618,-181.2004307,0.00015417,2]
[403677518,1769467985668,-63.3165063,0.00015417,2]
[403677519,1769467985699,-305.40812433,0.00015495,2]
[403677520,1769467985731,-182.64201967,0.00015495,2]
[403677521,1769467985765,-503.22212958,0.00015495,2]
[403677522,1769467985801,-503.22212958,0.00015495,2]
[403677523,1769467985838,-503.22212958,0.00015495,2]
[403677524,1769467985873,-503.22212958,0.00015495,2]
[403677525,1769467985907,-503.22212958,0.00015495,2]
[403677526,1769467985939,-503.22212958,0.00015495,2]
[403677527,1769467985971,-503.22212958,0.00015495,2]
[403677528,1769467986004,-503.22212958,0.00015495,2]
[403677529,1769467986035,-342.50049654,0.00015495,2]
[403677530,1769467991732,-160.72163304,0.00015495,2]
[403677531,1769467991768,-503.22212958,0.00015495,2]
[403677532,1769467991805,-503.22212958,0.00015495,2]
[403677533,1769467991840,-503.22212958,0.00015495,2]
[403677534,1769467991874,-503.22212958,0.00015495,2]
[403677535,1769467991912,-503.22212958,0.00015495,2]
[403677536,1769467991947,-503.22212958,0.00015495,2]
[403677537,1769467991980,-503.22212958,0.00015495,2]
[403677538,1769467992011,-503.22212958,0.00015495,2]
[403677539,1769467992043,-503.22212958,0.00015495,2]
[403677540,1769467992074,-117.3462719,0.00015495,2]
[403677541,1769467997934,-385.87585768,0.00015495,2]
[403677542,1769467997968,-503.22212958,0.00015495,2]
[403677543,1769467998001,-503.22212958,0.00015495,2]
[403677544,1769467998034,-503.22212958,0.00015495,2]
[403677545,1769467998066,-503.22212958,0.00015495,2]
[403677546,1769467998098,-503.22212958,0.00015495,2]
[403677547,1769467998130,-503.22212958,0.00015495,2]
[403677548,1769467998161,-503.22212958,0.00015495,2]
[403677549,1769467998192,-503.22212958,0.00015495,2]
[403677550,1769467998224,-503.22212958,0.00015495,2]
[403677552,1769468048834,2780.3815,0.00015413,2]
[403677596,1769468126117,500.0,0.00015394,2]
[403677615,1769468150209,172.35234732,0.00015395,2]
[403677643,1769468184574,-302.46509455,0.00015415,2]
[403677645,1769468186012,-323.68495203,0.00015415,2]
[403677647,1769468187629,-155.03186655,0.00015415,2]
[403677649,1769468189080,-382.27362717,0.00015415,2]
[403677651,1769468192882,-334.99224121,0.00015415,2]
[403677653,1769468194349,-192.73413162,0.00015415,2]
[403677659,1769468198595,-264.08,0.00015415,2]
[403677662,1769468201372,910.0,0.00015338,2]
[403677664,1769468201846,-319.57239449,0.00015415,2]
[403677669,1769468203976,-165.51566,0.00015415,2]
[403677674,1769468206502,-226.00565513,0.00015415,2]
[403677678,1769468208007,-159.47121487,0.00015415,2]
[403677680,1769468210093,-239.54442315,0.00015415,2]
[403677693,1769468216811,-294.0920583,0.00015415,2]
[403677695,1769468218961,-51.72970591,0.00015415,2]
[403677696,1769468218986,-106.72574992,0.00015415,2]
[403677788,1769468326520,-262.47544925,0.00015435,2]
[403677791,1769468329469,-232.54363134,0.00015435,2]
[403677793,1769468331331,10000.01,0.00015252,2]
[403677794,1769468332283,-191.39807647,0.00015252,2]
[403677797,1769468336130,-225.66994004,0.00015252,2]
[403677800,1769468337363,-510.30198349,0.00015252,2]
[403677801,1769468345468,261.06399669,0.00015415,2]
[403677812,1769468371430,8718.34203633,0.00015415,2]
[403677816,1769468379686,-337.25651874,0.00015415,2]
[403677818,1769468384537,-162.74348126,0.00015415,2]
[403677819,1769468385618,-162.54678208,0.00015415,2]
[403677820,1769468389117,-259.49426084,0.00015415,2]
[403677821,1769468391757,-256.57295727,0.00015415,2]
[403677838,1769468412066,678.614,0.00015338,2]
[403677864,1769468451462,1537.13,0.00015206,2]
[403677891,1769468483634,268.16449387,0.00015355,2]
[403677899,1769468488161,305.387,0.00015396,2]
[403677901,1769468488992,268.16449387,0.00015376,2]
[403677908,1769468494635,2481.3402,0.00015406,2]
[403677909,1769468494936,268.16449387,0.00015396,2]
[403677928,1769468514597,-151.00000034,0.00015415,2]
[403678012,1769468581992,300.0,0.00015414,2]
[403678013,1769468582046,300.0,0.00015414,2]
[403678075,1769468623240,1143.46,0.00019178,30]
[403678090,1769468632101,160.45888371,0.00015414,2]
[403678100,1769468641258,300.0,0.00015414,2]
[403678164,1769468701158,1200.0,0.00015414,2]
[403678165,1769468701191,300.0,0.00015414,2]
[403678173,1769468709606,-167.45273979,0.00015415,2]
[403678176,1769468712302,-241.55172431,0.00015415,2]
[403678178,1769468715133,-200.17713873,0.00015415,2]
[403678179,1769468717978,-2.87248736,0.00015415,2]
[403678180,1769468718003,-163.78751264,0.00015415,2]
[403678191,1769468734903,167.45274,0.00015338,2]
[403678347,1769468866508,1465.13369468,0.00015069,2]
[403678348,1769468866532,3676.49630532,0.00015069,2]
[403678369,1769468884304,-361.02572261,0.00015338,2]
[403678396,1769468914065,-250.0,0.00015376,2]
[403678398,1769468915447,-500.0,0.00015384,2]
[403678399,1769468915480,-500.0,0.00015384,2]
[403678400,1769468915515,-500.0,0.00015384,2]
[403678401,1769468915546,-236.04028429,0.00015384,2]
[403678402,1769468915579,-191.76805836,0.00015384,2]
[403678403,1769468915614,-500.0,0.00015384,2]
[403678404,1769468915647,-500.0,0.00015384,2]
[403678405,1769468915679,-500.0,0.00015384,2]
[403678406,1769468916109,-500.0,0.00015384,2]
[403678407,1769468916238,-500.0,0.00015384,2]
[403678408,1769468916679,-500.0,0.00015384,2]
[403678409,1769468917533,-229.3480686,0.00015384,2]